[Event "Romanian Rapid Open 2022"]
[Site "Sebes"]
[Date "2022.12.02"]
[Round "3.11"]
[White "Ghimpu, Samuel-Timotei"]
[Black "Nastase, Robert-Paul"]
[Result "1-0"]
[ECO "B12"]
[WhiteElo "2455"]
[BlackElo "2229"]
[Annotator "TA"]
[PlyCount "73"]
[EventDate "2022.12.02"]
[EventType "rapid"]
[EventCountry "ROU"]
[SourceTitle "playchess.com"]
[Source "ChessBase"]
[SourceQuality "1"]
[TimeControl "600+5"]

{[%evp 11,73,18,26,0,18,27,18,29,48,54,49,43,43,39,41,27,28,40,25,0,0,0,199,73,350,373,548,400,354,303,304,304,304,296,306,295,283,259,397,263,530,232,285,290,368,215,397,397,631,599,873,415,429,384,29966,29967,29967,29968,29987,29988,29988,29989,29989,29990]} 1. e4 {[%emt 0:00:04]} c6 {[%emt 0:00:01]} 2. d4 {[%emt 0:00:10]} d5 {[%emt 0:00:01]} 3. e5 {[%emt 0:00:05]} Bf5 {[%emt 0:00:01]} 4. h4 {[%emt 0:00:13]} h5 {[%emt 0:00:01]} 5. Bd3 {[%emt 0:00:03]} Bxd3 {[%emt 0:00:01]} 6. Qxd3 {[%emt 0:00:02]} e6 {[%emt 0:00:04]} 7. Bg5 {[%emt 0:00:03] B12: Caro-Kann: Advance Variation.} Qa5+ {[%emt 0:00:11]} (7... Qb6 $5 {[%cal Rb6b2]} 8. Nd2 c5 $11) 8. Nd2 {[%emt 0:00:02]} Qa6 {[%emt 0:00:20]} 9. c4 {[%emt 0:00:16] The position is equal.} Be7 {[%emt 0:01:21]} 10. Ngf3 {[%emt 0:00:19]} Bxg5 {[%emt 0:00:14]} 11. hxg5 {[%emt 0:00:12]} Ne7 {[%emt 0:00:32] Against g6} 12. O-O {[%emt 0:00:41]} Nd7 {[%emt 0:00:23] [#]} 13. b4 $146 {[%emt 0:00:05]} ({Predecessor:} 13. Nh4 g6 14. b3 O-O 15. Rfe1 Rad8 16. Qf3 dxc4 17. Nxc4 Nb6 18. Nd6 Nbc8 19. Nxc8 Rxc8 {0-1 (56) Polzin,R (2404)-Wilk,K (2125) Katowice 2017}) 13... O-O {[%emt 0:01:49]} 14. a4 {[%emt 0:00:07]} dxc4 {[%emt 0:00:19]} 15. Nxc4 {[%emt 0:00:35] Threatens to win with Rfb1.} Nb6 $1 {[%emt 0:00:01]} 16. Nfd2 {[%emt 0:00:08]} Nxa4 $2 {[%emt 0:00:17]} (16... Nxc4 $11 {and Black has nothing to worry.} 17. Nxc4 Nf5) 17. Qh3 {[%emt 0:02:07]} (17. Qf3 $1 $18 {[%cal Rf3h5] has better winning chances.}) 17... Qb5 $2 {[%emt 0:00:37][%mdl 8192] This costs Black the game.} (17... Rad8 $16) 18. Qxh5 $18 {[%emt 0:00:49] Strongly threatening Ra3.} Nf5 {[%emt 0:02:53]} (18... Ng6 $142 19. Ra3 Nf4) 19. Ra3 {[%emt 0:01:21]} g6 {[%emt 0:00:54]} 20. Qh2 {[%emt 0:00:24] Intending Rh3 and mate.} Kg7 {[%emt 0:00:04] [#] And now ...Rh8 would win.} (20... Nxd4 21. Rh3 Ne2+ 22. Kh1) 21. Nd6 $1 {[%emt 0:00:02] Threatening mate with Nxf5+.} Rh8 {[%emt 0:00:08] aiming for ...Nxd6.} 22. Nxb5 {[%emt 0:02:31] Chess con chili.} Rxh2 {[%emt 0:00:01]} 23. Kxh2 {[%emt 0:00:02]} (23. Rxa4 cxb5 $15) 23... cxb5 {[%emt 0:00:01]} 24. Ne4 {[%emt 0:01:03] Hoping for Rh3.} Rd8 {[%emt 0:00:07]} (24... Nb6 {might work better.} 25. Rd1 Rh8+ 26. Rh3 Rxh3+ 27. Kxh3 Nd5) 25. Rd1 {[%emt 0:00:25] Black must now prevent Rh3.} Kf8 $2 {[%emt 0:00:18]} (25... Nb2 {was necessary.}) 26. Raa1 {[%emt 0:00:12]} (26. Rc1 $142) 26... Nb2 {[%emt 0:00:12]} 27. Rdb1 {[%emt 0:00:02]} Na4 {[%emt 0:00:01]} 28. Nc5 {[%emt 0:00:09]} (28. Rc1 $142) 28... Nc3 $2 {[%emt 0:00:54]} (28... Kg7 29. g3 (29. Nxb7 Rh8+ 30. Kg1 Nxd4 $16) 29... Nxd4 30. Nxa4 (30. Nxb7 Rh8+ 31. Kg2 Nc2 $18) 30... bxa4) 29. Rb3 {[%emt 0:00:08]} (29. Nxb7 Rxd4 30. Rb2 Rh4+ 31. Kg1 Na4 $18) 29... Ne2 {[%emt 0:00:03]} (29... Na4 $142 30. Nxa4 bxa4 31. Rxa4 a6) 30. Rxa7 {[%emt 0:00:06]} b6 {[%emt 0:00:03] [#]} 31. Nd7+ {[%emt 0:00:04]} (31. Rh3 $142 $1 {White wants to mate with Ne4.} bxc5 32. Rh8+ (32. dxc5 Kg7 $11) 32... Kg7 33. Rxd8 Nexd4 34. Raa8) 31... Kg7 {[%emt 0:00:02]} 32. Nf6 {[%emt 0:00:02] White threatens Rh3 and mate.} ({Not} 32. Nxb6 Nfxd4 33. Re3 Nf4 $18) 32... Rh8+ {[%emt 0:00:17]} (32... Nf4 $18 33. Rba3 Rh8+ 34. Kg1 Nxd4) 33. Rh3 {[%emt 0:00:02] White mates.} Rxh3+ {[%emt 0:00:09]} 34. Kxh3 {[%emt 0:00:04]} Nexd4 {[%emt 0:00:09]} 35. Ra8 {[%emt 0:00:01][%csl Gf6][%cal Ra8g8]} Ne7 {[%emt 0:00:02]} 36. Re8 {[%emt 0:00:03]} Ndc6 {[%emt 0:00:09]} 37. f4 {[%emt 0:00:01] Weighted Error Value: White=0.54/Black=0.87} 1-0

[Event "Romanian Rapid Open 2022"]
[Site "Sebes"]
[Date "2022.12.02"]
[Round "3.12"]
[White "Stefan, Romulus-Cristian"]
[Black "Stoleriu, George"]
[Result "0-1"]
[ECO "A45"]
[WhiteElo "2097"]
[BlackElo "2389"]
[Annotator "TA"]
[PlyCount "94"]
[EventDate "2022.12.02"]
[EventType "rapid"]
[EventCountry "ROU"]
[SourceTitle "playchess.com"]
[Source "ChessBase"]
[SourceQuality "1"]
[TimeControl "600+5"]

{[%evp 9,94,30,32,29,26,12,30,29,22,8,8,0,34,22,41,20,34,19,37,7,0,-4,2,-5,-8,-6,0,-43,7,-26,4,-33,8,-97,-84,-82,-82,-77,-83,-199,-89,-103,-102,-95,0,0,19,-44,-46,-37,-30,-231,-279,-286,-288,-290,-224,-265,-197,-322,0,-243,-225,-279,-291,-464,-362,-328,-248,-262,-279,-296,-280,-412,-262,-394,-203,-402,-422,-417,-340,-420,-440,-1207,-1123,-1014,-553]} 1. d4 {[%emt 0:00:06]} e6 {[%emt 0:00:01]} 2. Bf4 {[%emt 0:00:02]} Nf6 {[%emt 0:00:02]} 3. e3 {[%emt 0:00:03]} b6 {[%emt 0:00:01]} 4. Qf3 {[%emt 0:00:01]} d5 {[%emt 0:00:19]} 5. Nc3 {[%emt 0:00:07]} c6 {[%emt 0:00:20] [#]} 6. Bd3 $146 {[%emt 0:00:26] A45: Trompowsky Attack.} ({Predecessor:} 6. O-O-O Be7 7. g4 Ba6 8. h4 Bxf1 9. Rxf1 Na6 10. h5 h6 11. g5 hxg5 12. Bxg5 {1-0 (29) Grachev,B (2612)-Peng,D (2287) Chess.com INT 2020}) 6... Ba6 {[%emt 0:00:20]} 7. Nge2 {[%emt 0:00:27]} Bxd3 {[%emt 0:00:16]} 8. cxd3 {[%emt 0:00:01] White has an edge.} Be7 {[%emt 0:00:07]} 9. O-O {[%emt 0:00:04]} O-O {[%emt 0:00:02]} 10. Rac1 {[%emt 0:00:05]} Nbd7 {[%emt 0:00:05]} 11. e4 {[%emt 0:00:10]} Rc8 {[%emt 0:09:27]} 12. Rfd1 {[%emt 0:01:04]} b5 {[%emt 0:00:00]} 13. a3 {[%emt 0:00:05]} Qb6 {[%emt 0:00:00]} 14. Be3 {[%emt 0:00:17]} a5 {[%emt 0:00:00]} 15. Ng3 {[%emt 0:00:31]} (15. e5 $5 Ne8 $8 16. Qg4 $11) 15... Rfd8 {[%emt 0:00:00]} 16. h4 {[%emt 0:00:17]} (16. e5 $5 Ne8 $8 17. Nce2 $11) 16... Qb7 {[%emt 0:00:00]} 17. h5 {[%emt 0:01:14]} (17. e5 $5 Ne8 $8 18. Qf4 $11) 17... h6 18. Qe2 {[%emt 0:06:35]} (18. e5 $5 {[%cal Re5f6]} Ne8 19. Qg4 $11) 18... c5 {[%emt 0:00:35]} (18... b4 $15 19. axb4 axb4) 19. e5 {[%emt 0:00:00]} Ne8 {[%emt 0:00:00]} 20. f4 {[%emt 0:00:00]} (20. dxc5 {seems wilder.} Nxe5 21. Bf4 b4 22. Bxe5 bxc3 23. d4) 20... f5 {[%emt 0:00:00]} 21. Nh1 {[%emt 0:00:00]} (21. Qf3 $11 {remains equal.}) 21... cxd4 $17 {[%emt 0:00:00]} 22. Bxd4 {[%emt 0:00:00]} Bc5 {[%emt 0:00:00]} 23. Bxc5 {[%emt 0:00:00]} Nxc5 {[%emt 0:00:00][%cal Bd7c5,Bc5a4,Ba4b2,Bb2d3][%mdl 32]} 24. g4 {[%emt 0:00:00] [#]} (24. d4 $17 Nb3 25. Rb1) 24... d4 {[%emt 0:00:00]} (24... Nb3 $1 $19 {[%cal Rb3c1]} 25. Rb1 b4) 25. Nb1 {[%emt 0:00:00]} fxg4 {[%emt 0:00:00] Black is more active.} 26. Qxg4 {[%emt 0:00:00] [#]} Qd5 {[%emt 0:00:00]} ({Black should try} 26... Qe7 $1 $17 {...Nc7 is the strong threat.} 27. Nf2 Nc7) 27. Nf2 $11 {[%emt 0:00:00]} Na4 {[%emt 0:00:00]} 28. Kh2 {[%emt 0:00:00]} (28. Qg6 $11) 28... Nxb2 $15 {[%emt 0:00:00]} 29. Rg1 {[%emt 0:00:00]} Qd7 {[%emt 0:00:01]} (29... Rxc1 {simplifies} 30. Rxc1 Na4 31. Ne4 Kf8) 30. Ne4 $2 {[%emt 0:00:00]} (30. Nd2 $11 {and White is okay.}) 30... Nxd3 $19 {[%emt 0:00:32]} 31. Rxc8 {[%emt 0:00:00]} Rxc8 {[%emt 0:00:01]} 32. Nbd2 {[%emt 0:00:00]} Qf7 {[%emt 0:00:06]} 33. Kg3 {[%emt 0:00:10]} Nc5 {[%emt 0:00:11]} 34. Kf3 {[%emt 0:00:26]} (34. Qg6 $142) 34... Nd3 {[%emt 0:00:14]} 35. Kg3 {[%emt 0:00:04]} Qf5 {[%emt 0:00:02]} 36. Qxf5 {[%emt 0:00:21]} exf5 {[%emt 0:00:02]} 37. Nf2 {[%emt 0:00:08]} (37. Nd6 {was the only defense.} Nxd6 38. exd6) 37... Nxf2 ({Don't go for} 37... Rc3 $2 38. Nxd3 Rxa3 39. Nf3 Rxd3 40. Rc1 $19) 38. Kxf2 {[%emt 0:00:01][%mdl 4096] Endgame KRN-KRN} Rc3 {[%emt 0:00:08] Against Nb3} 39. Rb1 {[%emt 0:00:06]} Nc7 {[%emt 0:00:01]} (39... Rxa3 $2 {loses.} 40. Rxb5 Ra2 41. Ke1 $19) 40. Nb3 {[%emt 0:00:09]} d3 {[%emt 0:00:15] aiming for ...a4.} ({Not} 40... Ne6 $2 41. Nxa5 Nc5 42. Rxb5 $19) 41. Nd4 {[%emt 0:00:08]} (41. Ke3 {was worth a try.}) 41... Rxa3 {[%emt 0:00:07]} 42. Nxf5 {[%emt 0:00:05]} (42. Nxb5 $142 Ra2+ 43. Ke3 Nd5+ 44. Kxd3) 42... Ne6 {[%emt 0:00:08]} (42... Ra2+ $142 43. Kf3 d2) 43. Ne7+ $2 {[%emt 0:00:04]} (43. Rxb5 {keeps fighting.} d2 44. Ke2) 43... Kf7 {[%emt 0:00:01]} 44. Nd5 {[%emt 0:00:01]} b4 {[%emt 0:00:13]} 45. f5 {[%emt 0:00:01]} Nc5 {[%emt 0:00:01] White must now prevent ...d2.} 46. Rc1 {[%emt 0:00:03]} (46. Rg1 $142 d2 47. Ke2) 46... Ne4+ {[%emt 0:00:01]} 47. Kg2 {[%emt 0:00:38]} d2 {[%emt 0:00:00] Weighted Error Value: White=0.55/Black=0.47} 0-1

[Event "Romanian Rapid Open 2022"]
[Site "Sebes"]
[Date "2022.12.02"]
[Round "3.13"]
[White "Soltanici, Ruslan"]
[Black "Creanga, Robert-Ionut"]
[Result "1-0"]
[ECO "E57"]
[WhiteElo "2357"]
[BlackElo "2190"]
[Annotator "TA"]
[PlyCount "143"]
[EventDate "2022.12.02"]
[EventType "rapid"]
[EventCountry "ROU"]
[SourceTitle "playchess.com"]
[Source "ChessBase"]
[SourceQuality "1"]
[TimeControl "600+5"]

{[%evp 22,143,-2,-3,0,0,0,0,0,-37,-29,-29,174,82,167,170,173,173,172,208,264,256,268,140,132,142,213,227,214,231,230,222,216,206,324,63,52,61,78,41,103,78,81,77,110,75,58,35,31,31,77,73,95,98,108,99,128,126,116,111,129,143,128,107,115,110,99,106,91,91,120,110,122,0,93,87,88,0,0,0,0,0,0,0,0,0,0,0,0,0,377,327,458,416,12846,12847,12847,12847,12847,12847,12849,12847,12849,12849,12850,12849,12850,12850,12850,27999,27999,27999,27999,27999,27999,27999,27999,27999,27999,27999,27999,27999,27999,27999]} 1. e4 {[%emt 0:00:03]} c6 {[%emt 0:00:13]} 2. d4 {[%emt 0:00:45]} d5 {[%emt 0:00:06]} 3. exd5 {[%emt 0:00:04]} cxd5 {[%emt 0:00:10]} 4. c4 {[%emt 0:00:02]} Nf6 {[%emt 0:00:43]} 5. Nc3 {[%emt 0:00:03]} Nc6 {[%emt 0:01:41]} 6. Bg5 {[%emt 0:00:05]} e6 {[%emt 0:02:11]} 7. Nf3 {[%emt 0:00:23]} Be7 {[%emt 0:00:21]} 8. a3 {[%emt 0:00:26]} O-O {[%emt 0:00:15]} 9. Bd3 {[%emt 0:00:03]} dxc4 {[%emt 0:00:16]} 10. Bxc4 {[%emt 0:00:01]} b6 {[%emt 0:00:27]} 11. O-O {[%emt 0:00:08]} Bb7 {[%emt 0:00:28]} 12. Re1 {[%emt 0:00:24]} h6 {[%emt 0:00:18] E57: Nimzo-Indian: Rubinstein: Main Line: 7...Nc6 8 a3 dxc4 9 Bxc4 cxd4.} 13. Bf4 {[%emt 0:04:23]} Na5 {[%emt 0:00:32]} 14. Ba2 {[%emt 0:00:02]} Nd5 {[%emt 0:00:16] The position is equal.} 15. Bg3 {[%emt 0:00:14] [#]} Nxc3 $146 {[%emt 0:00:17]} ({Predecessor:} 15... Rc8 16. Qd3 Nxc3 17. bxc3 Bd5 18. Bb1 f5 19. Ne5 Qe8 20. Bf4 Nc4 21. Nxc4 Rxc4 22. Qg3 {½-½ (22) Berchtenbreiter,M (2396)-Titov,E (1967) Schwarzach 2015}) 16. bxc3 {[%emt 0:00:01]} Bxa3 $2 {[%emt 0:00:48] [#]} (16... Rc8 $11 17. Qc2 Bxf3 18. gxf3 (18. Bb1 g6 $15) 18... Qd7) 17. Qd3 {[%emt 0:00:22]} (17. Bb1 $1 $18 {is more deadly.} Bd6 18. Qd3) 17... Bd6 {[%emt 0:00:18] [#]} (17... Bxf3 $16 18. gxf3 Qe7) 18. Bb1 $1 $18 {[%emt 0:00:05][%csl Gb1][%cal Rd3h7]} f5 {[%emt 0:00:52]} 19. Rxe6 {[%emt 0:00:03]} Bxg3 {[%emt 0:00:05]} 20. hxg3 {[%emt 0:00:01]} Bd5 {[%emt 0:00:17]} 21. Re5 {[%emt 0:00:17]} Bc4 {[%emt 0:00:18]} 22. Ba2 {[%emt 0:00:18]} (22. Qc2 $18) 22... Bxa2 $16 23. Rxa2 {[%emt 0:00:01][%cal Of3h4]} Rc8 {[%emt 0:00:22]} (23... Qc8 $16 24. Re7 Qc4) 24. Rxf5 $18 {[%emt 0:00:18]} Rxf5 {[%emt 0:00:21]} 25. Qxf5 {[%emt 0:00:01]} Rxc3 {[%emt 0:00:04]} 26. Qe6+ {[%emt 0:00:40]} (26. Ne5 Qd5 27. Re2 Nb3 $16) 26... Kh7 {[%emt 0:00:07]} 27. Re2 {[%emt 0:00:08]} Qf6 {[%emt 0:00:16]} (27... Rc7 {might work better.} 28. Qg4 Re7) 28. Qxf6 $2 {[%emt 0:00:38]} (28. Qd7 $18) 28... gxf6 {[%emt 0:00:01][%mdl 4096] Endgame KRN-KRN} 29. Re7+ {[%emt 0:00:01]} Kg8 $1 {[%emt 0:00:13]} 30. Rxa7 {[%emt 0:00:10]} Rd3 {[%emt 0:00:09]} ({Black should play} 30... Rc1+ $1 $14 31. Kh2 Rf1) 31. Nh4 {[%emt 0:00:15]} Rxd4 {[%emt 0:00:03]} 32. Nf5 {[%emt 0:00:01][%csl LRd4,LRh6] Inhibits h5.} Rd1+ {[%emt 0:00:01]} 33. Kh2 {[%emt 0:00:00] White is more active.} h5 {[%emt 0:00:07]} 34. Ne7+ {[%emt 0:00:09]} Kf8 {[%emt 0:00:08]} 35. Ng6+ {[%emt 0:00:04]} Kg8 {[%emt 0:00:06]} (35... Ke8 $14) 36. Nf4 $16 {[%emt 0:00:02]} Nc4 {[%emt 0:00:07]} 37. Nxh5 {[%emt 0:00:02]} Rd6 {[%emt 0:00:01]} 38. Rb7 {[%emt 0:00:24] Prevents b5.} Na5 {[%emt 0:00:05]} 39. Rb8+ {[%emt 0:00:17]} Kf7 {[%emt 0:00:03]} 40. g4 {[%emt 0:00:01]} Nb3 {[%emt 0:00:10]} 41. Rb7+ {[%emt 0:00:03]} Kf8 {[%emt 0:00:05]} 42. f4 {[%emt 0:00:05]} Nc5 {[%emt 0:00:01]} 43. Rb8+ {[%emt 0:00:23]} Kf7 {[%emt 0:00:02]} 44. Kh3 {[%emt 0:00:14]} Nd7 {[%emt 0:00:03]} 45. Rb7 {[%emt 0:00:02]} Rd3+ {[%emt 0:00:13]} 46. Kh4 {[%emt 0:00:07] And now g5 would win.} Rd2 {[%emt 0:00:06]} 47. Kh3 {[%emt 0:00:36]} Rd3+ $1 {[%emt 0:00:02]} 48. g3 {[%emt 0:00:00]} Rd2 {[%emt 0:00:03]} 49. g5 {[%emt 0:00:26]} ({Better is} 49. f5 $16) 49... fxg5 $11 {[%emt 0:00:02]} 50. f5 {[%emt 0:00:00] Kg4 is the strong threat.} (50. fxg5 $5 Kg6 $8 51. Nf6 Nxf6 52. gxf6 $11) 50... Rd4 {[%emt 0:00:11]} 51. Kg2 {[%emt 0:00:22]} g4 {[%emt 0:00:04]} 52. Kf2 {[%emt 0:00:01] aiming for Ke3.} Rd3 {[%emt 0:00:10]} 53. Ke2 {[%emt 0:00:06]} Rd5 {[%emt 0:00:03]} 54. Ke3 {[%emt 0:00:04]} Ke7 {[%emt 0:00:07]} 55. Kf4 {[%emt 0:00:06][%cal Of4g5] Strongly threatening Kg5!} Rd4+ $2 {[%emt 0:00:04][%mdl 8192] White stays focused until the end.} (55... Kd8 $1 $11 56. Kg5 (56. Kxg4 Ra5 $17) 56... Kc8) 56. Kg5 $18 {[%emt 0:00:01] Threatens to win with Nf6.} Kd6 {[%emt 0:00:01]} (56... Kf8 {was necessary.} 57. Nf6 Ne5 58. Rb8+ Kg7 59. Nh5+ Kh7 60. Rb7+ Kg8 61. Rxb6 Rd8) 57. Nf6 {[%emt 0:00:17]} Nxf6 {[%emt 0:00:10]} (57... Nc5 $142 58. Rxb6+ Kc7) 58. Rxb6+ {[%emt 0:00:03] KRN-KR} ({Weaker is} 58. Kxf6 Kc6 59. Rg7 b5 $16) 58... Ke5 {[%emt 0:00:05]} 59. Re6+ {[%emt 0:00:04]} Kd5 {[%emt 0:00:01]} 60. Rxf6 {[%emt 0:00:02] KR-KR} Re4 {[%emt 0:00:03]} 61. Rf8 {[%emt 0:00:03]} Kd6 {[%emt 0:00:03]} 62. Rh8 {[%emt 0:00:14]} Ke7 {[%emt 0:00:04]} 63. Rh7+ {[%emt 0:00:01]} Kd6 {[%emt 0:00:06]} 64. Rh4 {[%emt 0:00:03]} Ke5 {[%emt 0:00:08]} 65. Rxg4 {[%emt 0:00:24]} Re3 {[%emt 0:00:01] White mates.} 66. Kg6 {[%emt 0:00:06]} Rf3 {[%emt 0:00:01]} 67. Rg5 {[%emt 0:00:03]} Rf1 {[%emt 0:00:17]} 68. g4 {[%emt 0:00:01]} Rf4 {[%emt 0:00:02]} 69. Kg7 {[%emt 0:00:05]} Kd5 {[%emt 0:00:09]} 70. Kf6 {[%emt 0:00:04]} Ra4 {[%emt 0:00:03]} 71. Rg8 {[%emt 0:00:02]} Ra6+ {[%emt 0:00:02]} 72. Kg5 {[%emt 0:00:03] Weighted Error Value: White=0.22 (precise) /Black=0.31} 1-0

[Event "Romanian Rapid Open 2022"]
[Site "Sebes"]
[Date "2022.12.02"]
[Round "3.14"]
[White "Filip, Lucian-Ioan"]
[Black "Ciolacu, Alessia-Mihaela"]
[Result "1-0"]
[ECO "E01"]
[WhiteElo "2370"]
[BlackElo "2097"]
[Annotator "TA"]
[PlyCount "51"]
[EventDate "2022.12.02"]
[EventType "rapid"]
[EventCountry "ROU"]
[SourceTitle "playchess.com"]
[Source "ChessBase"]
[SourceQuality "1"]
[TimeControl "600+5"]

{[%evp 9,50,0,21,19,35,33,35,32,50,45,44,39,43,45,108,103,280,279,335,203,322,315,506,454,1214,1204,471,0,0,0,0,0,0,-263,0,0,0,0,1633,1627,29998,29999,29999]} 1. Nf3 {[%emt 0:00:05]} Nf6 {[%emt 0:00:03]} 2. c4 {[%emt 0:00:00]} e6 {[%emt 0:00:03]} 3. g3 {[%emt 0:00:02]} d5 {[%emt 0:00:03]} 4. d4 {[%emt 0:00:05]} Bb4+ {[%emt 0:00:04]} 5. Bd2 {[%emt 0:00:08]} Bd6 {[%emt 0:00:02]} 6. Nc3 {[%emt 0:00:20] E01: Catalan: Early deviations.} c6 {[%emt 0:00:17]} 7. Qc2 {[%emt 0:00:04]} O-O {[%emt 0:00:33]} 8. e4 {[%emt 0:00:05] aiming for e5. White is slightly better.} dxe4 {[%emt 0:00:45]} 9. Nxe4 {[%emt 0:00:10]} Nxe4 {[%emt 0:01:37]} 10. Qxe4 {[%emt 0:00:01]} c5 {[%emt 0:00:06] [#]} 11. O-O-O $146 {[%emt 0:03:50]} ({Predecessor:} 11. Bc3 Nc6 12. O-O-O Qe7 13. Bg2 Bd7 14. dxc5 Bxc5 15. Rxd7 Qxd7 16. Ng5 g6 17. Nxh7 {1-0 (30) Erigaisi,A (2616)-Caruana,F (2765) Riga 2021}) 11... Nd7 {[%emt 0:02:15]} (11... Nc6 $14) 12. Bd3 $16 {[%emt 0:00:40][%csl Gd3][%cal Re4h7] White is much more active. The black rooks are badly placed.} Nf6 {[%emt 0:00:11]} (12... g6 $16) 13. Qh4 $1 $18 {[%emt 0:00:11]} cxd4 {[%emt 0:01:00]} 14. Bg5 $1 {[%emt 0:02:36] And now Bxf6 would win.} (14. Nxd4 Bd7 $14) (14. Qxd4 e5 15. Qh4 h6 $11) 14... h6 {[%emt 0:00:05]} (14... h5 $142) 15. Bxh6 $1 {[%emt 0:00:01][%mdl 64]} (15. Bxf6 Qxf6 16. Qxf6 (16. Nxd4 Qxh4 17. gxh4 Bc5 $17) 16... gxf6 $11) 15... gxh6 {[%emt 0:01:04]} (15... Re8) 16. Qxh6 {[%emt 0:00:01] Rhe1 is the strong threat.} Re8 {[%emt 0:00:14]} (16... b5 $142 17. Ng5 Be7 18. Bh7+ (18. cxb5 Rb8 $18) 18... Kh8) 17. Ng5 $1 {[%emt 0:00:02] Threatening mate with Bh7+.} (17. Nxd4 $2 Bf8 18. Qg5+ Bg7 $17) 17... Qc7 {[%emt 0:03:08]} 18. Bh7+ $2 {[%emt 0:00:12]} ({Less strong is} 18. Qxf6 Be5 19. Qh6 Bg7 20. Qh7+ Kf8 $18) (18. Rhe1 $18 Bf8 19. Bh7+ (19. Qxf6 Bg7 $16) 19... Kh8 20. Qxf6+ Bg7 21. Qf3) 18... Nxh7 $11 {[%emt 0:00:00]} 19. Qxh7+ {[%emt 0:00:28]} Kf8 {[%emt 0:00:00] White must now prevent ...Be5.} 20. Rxd4 $40 {[%emt 0:02:06][%mdl 128] White has some attack.} Be5 {[%emt 0:00:00]} 21. Rh4 {[%emt 0:00:18][%mdl 8192] [#]} (21. Re4 $11 Bg7 22. Qh4) 21... Bg7 $2 {[%emt 0:00:00]} ({Black should try} 21... Bxb2+ $1 $19 {[%mdl 512]} 22. Kxb2 Qe5+ 23. Kb3 Qxg5) 22. Rf4 {[%emt 0:00:16]} f5 {[%emt 0:00:00]} 23. Qg6 {[%emt 0:00:09]} e5 $2 {[%emt 0:00:15][%mdl 8192]} (23... Be5 $11 24. Rh4 Re7) 24. Nh7+ $18 {[%emt 0:00:05]} Kg8 {[%emt 0:00:08]} 25. Nf6+ {[%emt 0:00:01]} Kf8 {[%emt 0:00:10]} 26. Qxe8# {[%emt 0:00:02] Weighted Error Value: White=0.49/Black=0.86} 1-0

[Event "Romanian Rapid Open 2022"]
[Site "Sebes"]
[Date "2022.12.02"]
[Round "3.15"]
[White "Zubcu, Vlad-George"]
[Black "Secheres, Adrian-Simion"]
[Result "0-1"]
[ECO "D00"]
[WhiteElo "2135"]
[BlackElo "2365"]
[Annotator "TA"]
[PlyCount "70"]
[EventDate "2022.12.02"]
[EventType "rapid"]
[EventCountry "ROU"]
[SourceTitle "playchess.com"]
[Source "ChessBase"]
[SourceQuality "1"]
[TimeControl "600+5"]

{[%evp 9,70,14,35,31,85,22,29,27,70,64,83,87,90,35,23,25,27,26,25,14,20,0,40,-41,8,-105,-116,-95,-79,-107,-111,-102,-99,-108,-108,-147,-151,-177,-164,-298,-297,-365,-371,-425,-458,-436,-392,-407,-406,-398,-376,-440,-428,-656,-656,-761,-745,-820,-820,-1345,-1343,-1510,-1403]} 1. d4 {[%emt 0:00:02]} Nf6 {[%emt 0:00:03]} 2. Bg5 {[%emt 0:00:01]} d5 {[%emt 0:00:07]} 3. Bxf6 {[%emt 0:00:02]} gxf6 {[%emt 0:00:02]} 4. c4 {[%emt 0:00:09]} dxc4 {[%emt 0:00:25]} 5. e3 {[%emt 0:00:05]} e6 {[%emt 0:00:09]} 6. Bxc4 {[%emt 0:00:35] D00: 1 d4 d5: Unusual lines.} c5 {[%emt 0:00:14]} ({Better is} 6... f5 $14) 7. Nf3 {[%emt 0:00:14]} ({White should play} 7. d5 $1 $16) 7... cxd4 {[%emt 0:00:29]} 8. exd4 {[%emt 0:00:41] White has an edge.} Bd6 {[%emt 0:00:43] [#]} 9. O-O $146 {[%emt 0:00:09]} ({Predecessor:} 9. Nc3 f5 10. Ne5 O-O 11. Qe2 Qf6 12. g4 Nc6 13. Nxc6 bxc6 14. O-O-O Rb8 15. Kb1 {0-1 (48) Schenk,S (1795)-Drygalov,A (2495) Chess.com INT 2020}) 9... O-O {[%emt 0:00:05]} 10. Nc3 {[%emt 0:00:07]} f5 {[%emt 0:00:47]} 11. Qe2 {[%emt 0:00:24]} (11. d5 $16) 11... Nd7 $1 $14 {[%emt 0:00:54]} 12. Rfe1 {[%emt 0:00:31][%cal Oc4e6]} (12. Bxe6 Re8 13. Bxf7+ Kxf7 $17) 12... Qf6 {[%emt 0:00:37]} 13. Rad1 {[%emt 0:00:57]} a6 {[%emt 0:00:03]} 14. Ne5 {[%emt 0:00:44]} Qh6 {[%emt 0:00:06]} 15. Qf3 {[%emt 0:00:15] Inhibits b5.} Rb8 {[%emt 0:01:40]} 16. h3 {[%emt 0:02:26]} (16. Qg3+ $14 Qg7 17. a4) 16... b5 {[%emt 0:00:42] [#]} (16... Nxe5 $15 17. dxe5 Bc5) 17. Bd3 {[%emt 0:00:30]} (17. Nxf7 $1 $11 {keeps the balance.} Rxf7 18. Rxe6 (18. Bxe6 Nf6 $11)) 17... Nxe5 $17 {[%emt 0:00:56]} 18. dxe5 {[%emt 0:00:30]} Bc5 {[%emt 0:00:02][%cal Bd6c5,Bc5d4,Bd4e5][%mdl 32] And now ...Bb7 would win.} 19. Ne2 {[%emt 0:01:02]} Bb7 {[%emt 0:00:11]} 20. Qf4 {[%emt 0:00:05]} ({But not} 20. Qg3+ $2 Kh8 21. b4 Bxb4 $19) 20... Qxf4 {[%emt 0:01:49]} (20... Kg7 {looks sharper.} 21. Bc2 Qxf4 22. Nxf4 Rbd8) 21. Nxf4 {[%emt 0:00:03]} Rfd8 {[%emt 0:00:01]} 22. Bc2 {[%emt 0:00:06] [#]} Bd4 $1 {[%emt 0:00:10]} 23. Rb1 {[%emt 0:01:06]} Kf8 {[%emt 0:00:06]} 24. Bb3 {[%emt 0:00:29]} (24. Nd3 $142) 24... Be4 $19 {[%emt 0:00:11] A strong pair of Bishops.} 25. Rbc1 {[%emt 0:00:09]} Bxe5 {[%emt 0:00:03]} (25... Bxb2 $2 {loses.} 26. Rcd1 $19) 26. Nh5 {[%emt 0:00:42]} Bxb2 {[%emt 0:00:03]} 27. Rc7 {[%emt 0:00:02]} Rb7 {[%emt 0:00:03] Against f3} 28. Rxb7 {[%emt 0:00:08]} Bxb7 {[%emt 0:00:01]} 29. Nf4 {[%emt 0:00:06]} Rd2 {[%emt 0:00:05]} 30. h4 {[%emt 0:00:08]} Bd4 {[%emt 0:00:08] Black is clearly winning.} 31. Rf1 {[%emt 0:00:02]} (31. Re2 $142 Rxe2 32. Nxe2) 31... a5 {[%emt 0:00:10]} 32. a4 {[%emt 0:00:08]} Bc6 {[%emt 0:00:05]} 33. axb5 {[%emt 0:00:03]} Bxb5 {[%emt 0:00:02]} 34. Rc1 {[%emt 0:00:02]} Rxf2 {[%emt 0:00:07]} 35. Rc8+ {[%emt 0:00:01]} Ke7 {[%emt 0:01:41] Weighted Error Value: White=0.65/Black=0.12 (very precise)} 0-1